bitfinex-derivatives/quotes_SOLF0:USTF0_20260126
["timestamp","ask_amount","ask_price","bid_price","bid_amount"]
[1769443595449,65.53802351,123.3,123.23,23.59322134]
[1769443595845,63.12798102,123.27,123.18,137.40609032]
[1769443596050,63.12798102,123.27,123.19,26.05813281]
[1769443596349,65.53802351,123.26,123.19,23.64809032]
[1769443596552,65.53802351,123.26,123.18,7.3129]
[1769443596553,2.41004249,123.24,123.18,7.3129]
[1769443596748,2.41004249,123.27,123.2,26.11343801]
[1769443596943,65.53802351,123.28,123.21,2.41004249]
[1769443597248,63.18409323,123.25,123.17,139.88313801]
[1769443597449,63.18409323,123.25,123.18,23.7579354]
[1769443597847,63.12798102,123.25,123.18,23.7579354]
[1769443598349,0.05484205,123.23,123.18,23.7579354]
[1769443598551,63.12798102,123.25,123.19,31.12357268]
[1769443598748,63.12798102,123.25,123.2,0.05493959]
[1769443599051,5.54765745,123.28,123.2,23.86611227]
[1769443599052,63.12798102,123.28,123.2,23.86611227]
[1769443599443,63.12798102,123.28,123.2,31.17781227]
[1769443599644,63.12798102,123.28,123.2,31.12287268]
[1769443600153,63.12798102,123.28,123.23,0.05292484]
[1769443600744,63.18096008,123.27,123.18,93.28219231]
[1769443601356,63.12798102,123.27,123.2,24.02161831]
[1769443601652,63.12798102,123.3,123.21,24.02161831]
[1769443602151,0.0527209,123.25,123.21,24.02161831]
[1769443602751,63.12798102,123.28,123.18,207.14675267]
[1769443603153,63.12798102,123.28,123.19,24.07245267]
[1769443603450,63.12798102,123.28,123.2,24.12350991]
[1769443603857,63.12798102,123.28,123.22,0.054446]
[1769443607459,63.12798102,123.28,123.22,24.37589475]
[1769443607662,5.54765745,123.34,123.24,7.3095]
[1769443608551,5.54765745,123.34,123.28,0.0522258]
[1769443608752,5.54765745,123.34,123.24,7.3095]
[1769443609054,0.05712688,123.3,123.24,7.3095]
[1769443609761,0.05712688,123.3,123.25,7.309]
[1769443610260,63.82953546,123.32,123.25,7.309]
[1769443610561,0.05303944,123.29,123.25,7.309]
[1769443610759,63.82953546,123.32,123.27,7.3077]
[1769443610955,63.82953546,123.32,123.27,7.35916221]
[1769443611154,63.82953546,123.32,123.27,0.05146221]
[1769443613459,76.67487453,123.35,123.27,0.05146221]
[1769443613649,71.13303546,123.35,123.27,0.05146221]
[1769443614054,63.82953546,123.35,123.26,37.39434577]
[1769443614254,63.82953546,123.35,123.27,151.07064577]
[1769443614456,63.82953546,123.35,123.3,0.05990125]
[1769443615962,0.05702529,123.34,123.3,0.05990125]
[1769443616554,0.05702529,123.34,123.3,7.36590125]
[1769443616962,113.5658,123.4,123.3,7.36590125]
[1769443616963,63.82953546,123.4,123.32,7.3046]
[1769443617167,63.82953546,123.4,123.31,37.60357441]
[1769443617361,63.82953546,123.4,123.32,37.67164882]
[1769443617662,63.82953546,123.4,123.34,7.3037]
[1769443617862,63.82953546,123.4,123.32,37.67164882]
[1769443618361,63.82953546,123.4,123.3,37.73899549]
[1769443618864,63.82953546,123.4,123.33,7.3043]
[1769443619455,63.82953546,123.4,123.3,151.38869549]
[1769443619659,63.82953546,123.4,123.31,45.11001098]
[1769443619863,63.82953546,123.4,123.35,0.06192922]
[1769443620362,69.37137453,123.4,123.31,62.0]
[1769443620567,63.82953546,123.37,123.28,37.93270253]
[1769443621167,71.13163546,123.37,123.29,7.3067]
[1769443621367,63.82953546,123.37,123.28,37.93270253]
[1769443621769,0.06185967,123.34,123.28,37.93270253]
[1769443622463,63.89139513,123.34,123.25,38.0624314]
[1769443622867,63.82953546,123.34,123.25,38.0624314]
[1769443623062,63.82953546,123.34,123.27,7.3079]
[1769443623957,63.82953546,123.37,123.28,45.43448404]
[1769443624469,63.82953546,123.37,123.26,62.0]
[1769443624668,63.82953546,123.35,123.28,7.3073]
[1769443625670,0.05247186,123.33,123.28,7.3073]
[1769443627064,0.05247186,123.33,123.27,38.19012455]
[1769443628864,0.05247186,123.33,123.28,7.3073]
[1769443629869,2.46501176,123.33,123.28,7.3073]
[1769443630059,2.46501176,123.33,123.27,38.19012455]
[1769443630863,0.05247186,123.33,123.28,7.3073]
[1769443632275,2.46501176,123.33,123.28,7.3073]
[1769443632671,66.29454722,123.33,123.25,41.07928706]
[1769443632971,66.29454722,123.33,123.26,41.07928706]
[1769443633177,66.24207536,123.33,123.28,7.3073]
[1769443633376,63.82953546,123.33,123.28,7.3073]
[1769443633577,66.24207536,123.35,123.28,2.4125399]
[1769443633971,66.24207536,123.35,123.29,0.05901493]
[1769443634875,66.24207536,123.35,123.29,7.36571493]
[1769443635889,66.24207536,123.35,123.29,0.05901493]
[1769443636885,60.15657132,123.35,123.3,7.5507162]
[1769443637081,62.56911122,123.35,123.31,7.5507162]
[1769443637285,62.56911122,123.35,123.29,7.36571493]
[1769443637584,62.56911122,123.35,123.29,7.3067]
[1769443637787,62.56911122,123.35,123.28,7.3073]
[1769443637981,60.15657132,123.35,123.31,0.05388571]
[1769443638182,2.4125399,123.34,123.31,0.05388571]
[1769443638683,2.4125399,123.34,123.27,41.13609326]
[1769443639084,2.4125399,123.34,123.31,0.06208959]
[1769443639485,65.21693544,123.35,123.31,0.06208959]
[1769443640784,65.21693544,123.35,123.25,49.74997281]
[1769443640987,65.21693544,123.31,123.24,57.05657281]
[1769443641282,65.21693544,123.29,123.22,59.55913464]
[1769443641590,65.21693544,123.29,123.23,7.3103]
[1769443642288,65.21693544,123.31,123.24,7.3097]
[1769443642490,65.21693544,123.3,123.24,7.3097]
[1769443642690,65.21693544,123.3,123.25,0.05877646]
[1769443642893,62.80439554,123.3,123.25,0.05877646]
[1769443643189,65.21693544,123.29,123.25,0.05877646]
[1769443643685,65.21693544,123.29,123.22,7.3104]
[1769443644093,65.21693544,123.27,123.2,309.62]
[1769443644280,65.21693544,123.26,123.19,57.37647667]
[1769443644786,62.80439554,123.3,123.22,57.46490142]
[1769443644983,65.21693544,123.28,123.22,57.46490142]
[1769443645180,65.21693544,123.28,123.2,59.87744132]
[1769443645384,2.4125399,123.27,123.2,59.87744132]
[1769443645591,0.06017955,123.26,123.2,57.46490142]
[1769443645791,0.06017955,123.26,123.22,59.9645425]
[1769443645991,65.21693544,123.3,123.23,2.4125399]
[1769443646391,65.21693544,123.3,123.23,9.7228399]
[1769443646603,65.21693544,123.3,123.23,7.3103]
[1769443646790,62.80439554,123.3,123.23,9.7228399]
[1769443646989,62.80439554,123.3,123.24,9.7221399]
[1769443647288,62.80439554,123.3,123.2,113.7408]
[1769443647289,62.80439554,123.26,123.19,66.66385569]
[1769443647494,62.80439554,123.26,123.19,73.97635569]
[1769443647701,62.80439554,123.26,123.19,66.66385569]
[1769443647993,62.80439554,123.26,123.19,2.4125399]
[1769443648588,65.21693544,123.26,123.19,2.4125399]
[1769443648785,65.21693544,123.26,123.15,113.788]
[1769443648786,62.80439554,123.23,123.15,64.25131579]
[1769443649090,65.21693544,123.23,123.15,66.66385569]
[1769443649396,65.21693544,123.23,123.15,73.97885569]
[1769443649594,62.80439554,123.23,123.15,64.25131579]
[1769443649992,62.80439554,123.23,123.18,0.05341486]
[1769443653590,62.80439554,123.25,123.19,71.56381579]
[1769443654992,62.80439554,123.25,123.19,64.25131579]
[1769443655206,62.80439554,123.25,123.21,0.0583026]
[1769443656201,0.05737588,123.24,123.15,64.25131579]
[1769443656500,62.80439554,123.23,123.15,64.25131579]
[1769443656701,62.80439554,123.23,123.15,126.25131579]
[1769443657292,62.80439554,123.23,123.16,71.56551579]
[1769443657492,62.80439554,123.23,123.16,64.25131579]
[1769443658998,62.80439554,123.23,123.18,0.05113531]
[1769443661398,62.80439554,123.31,123.19,64.25131579]
[1769443661599,68.35339508,123.31,123.19,64.25131579]
[1769443661799,68.35339508,123.31,123.18,113.81093531]
[1769443661800,68.35339508,123.31,123.21,64.25131579]
[1769443662104,62.80439554,123.31,123.21,64.25131579]
[1769443662406,62.80439554,123.31,123.25,0.05438286]
[1769443662902,70.10999554,123.31,123.25,0.05438286]
[1769443663104,62.80439554,123.31,123.21,62.0]
[1769443663404,62.80439554,123.26,123.18,71.56441579]
[1769443664195,70.11299554,123.26,123.18,71.56441579]
[1769443664406,0.0530734,123.23,123.15,64.25131579]
[1769443664608,68.35339508,123.21,123.09,178.09141579]
[1769443664800,68.35339508,123.21,123.1,7.3178]
[1769443665000,62.80439554,123.19,123.09,64.25131579]
[1769443665201,62.80439554,123.18,123.09,64.25131579]
[1769443665396,62.80439554,123.22,123.11,64.25131579]
[1769443665902,62.80439554,123.2,123.13,7.3161]
[1769443666107,62.80439554,123.2,123.13,64.25131579]
[1769443666307,62.80439554,123.23,123.13,64.25131579]
[1769443667006,62.80439554,123.23,123.15,7.3148]
[1769443667202,62.80439554,123.23,123.13,64.25131579]
[1769443667712,62.80439554,123.23,123.17,0.05620682]
[1769443669209,62.80439554,123.23,123.11,113.8221]
[1769443669210,68.35339508,123.23,123.1,189.4375625]
[1769443669405,67.96814891,123.21,123.11,70.05786296]
[1769443669609,67.96814891,123.21,123.13,7.3161]
[1769443669802,67.90673216,123.21,123.13,7.3161]
[1769443670002,67.90673216,123.21,123.13,77.37396296]
[1769443670402,75.21693216,123.24,123.14,70.05786296]
[1769443670806,75.21693216,123.24,123.15,7.3148]
[1769443671002,67.90673216,123.22,123.14,70.05786296]
[1769443671203,67.90673216,123.22,123.12,183.87286296]
[1769443671408,67.90673216,123.22,123.14,77.37336296]
[1769443672008,67.90673216,123.22,123.17,0.05619064]
[1769443673202,67.90673216,123.22,123.11,70.05786296]
[1769443673407,67.90673216,123.22,123.13,70.05786296]
[1769443673606,0.05872207,123.21,123.13,70.05786296]
[1769443673807,67.96545423,123.21,123.13,70.05786296]
[1769443674004,67.90673216,123.21,123.13,70.05786296]
[1769443674601,0.05525257,123.18,123.14,7.3154]
[1769443674806,0.05525257,123.18,123.13,70.05786296]
[1769443675706,67.90673216,123.21,123.14,7.3155]
[1769443675907,67.90673216,123.21,123.14,70.11505209]
[1769443676811,67.90673216,123.24,123.15,77.37266296]
[1769443677210,67.90673216,123.24,123.17,70.05786296]
[1769443677807,67.90673216,123.24,123.19,0.05760768]
[1769443678010,67.90673216,123.27,123.19,0.05760768]
[1769443678210,67.90673216,123.3,123.2,70.05786296]
[1769443678610,75.21303216,123.3,123.2,70.05786296]
[1769443678809,67.90673216,123.26,123.17,70.05786296]
[1769443679009,67.90673216,123.26,123.17,77.37166296]
[1769443679212,67.96719836,123.26,123.17,70.05786296]
[1769443679708,67.90673216,123.26,123.17,70.05786296]
[1769443680317,0.05886626,123.23,123.17,70.05786296]
[1769443680532,67.90673216,123.29,123.2,70.05786296]
[1769443680813,67.90673216,123.29,123.21,70.05786296]
[1769443681009,67.90673216,123.29,123.23,7.3103]
[1769443681207,67.90673216,123.29,123.22,70.05786296]
[1769443681407,67.90673216,123.32,123.23,70.05786296]
[1769443681715,67.90673216,123.32,123.25,7.309]
[1769443681908,67.90673216,123.32,123.26,0.06005312]
[1769443682515,67.90673216,123.28,123.17,113.7707]
[1769443682812,67.90673216,123.26,123.19,70.05786296]
[1769443683416,67.90673216,123.32,123.22,70.05786296]
[1769443683611,67.90673216,123.32,123.18,113.7541]
[1769443683612,67.90673216,123.32,123.2,70.05786296]
[1769443683915,0.05284432,123.28,123.2,70.05786296]
[1769443684213,67.95957648,123.28,123.18,334.6378]
[1769443684417,67.90673216,123.28,123.18,70.05786296]
[1769443684615,67.90673216,123.28,123.19,70.05786296]
[1769443685223,67.90673216,123.28,123.22,7.36384481]
[1769443685421,67.90673216,123.28,123.22,0.05304481]
[1769443687020,75.21413216,123.28,123.22,0.05304481]
[1769443688819,67.90673216,123.28,123.22,0.05304481]
[1769443691521,227.1908,123.37,123.22,70.11090777]
[1769443691522,67.90673216,123.31,123.22,70.11090777]
[1769443692025,67.90673216,123.31,123.22,70.05786296]
[1769443692227,67.90673216,123.31,123.25,7.3091]
[1769443692521,67.90673216,123.31,123.25,7.36802034]
[1769443693518,67.90673216,123.34,123.25,70.1167833]
[1769443694123,67.90673216,123.34,123.25,70.05786296]
[1769443694521,67.90673216,123.34,123.28,0.05959754]
[1769443696328,67.90673216,123.34,123.28,7.36689754]
[1769443700031,394.09990581,123.36,123.28,64.36928834]
[1769443700530,394.09990581,123.36,123.28,64.3096908]
[1769443700827,70.15990581,123.36,123.31,7.3055]
[1769443701034,70.15990581,123.36,123.31,7.36501967]
[1769443701227,70.15990581,123.36,123.31,0.05951967]
[1769443703432,70.15990581,123.38,123.31,0.05951967]
[1769443703632,77.46150581,123.38,123.31,0.05951967]
[1769443703831,70.15990581,123.38,123.31,0.05951967]
[1769443704027,70.15990581,123.38,123.3,64.3096908]
[1769443704334,70.15990581,123.38,123.31,64.3096908]
[1769443704533,70.15990581,123.4,123.33,7.3043]
[1769443704833,70.15990581,123.4,123.33,7.35748945]
[1769443705033,77.46030581,123.4,123.33,7.35748945]
[1769443705336,227.0256,123.46,123.34,64.3096908]
[1769443705628,550.8256,123.46,123.34,64.3096908]
[1769443705828,550.8256,123.46,123.37,7.3019]
[1769443706335,5.55143478,123.45,123.34,64.3096908]
[1769443706632,7.2986,123.43,123.36,7.3025]
[1769443706933,0.05296339,123.41,123.36,7.3025]
[1769443707532,0.05296339,123.41,123.37,7.302]
[1769443707936,0.05296339,123.41,123.35,177.9105908]
[1769443708134,70.15990581,123.45,123.38,64.3096908]
[1769443709033,70.15990581,123.45,123.39,7.3004]
[1769443710238,70.15990581,123.51,123.39,64.3096908]
[1769443710439,70.15990581,123.5,123.42,64.3096908]
[1769443710834,77.45560581,123.48,123.41,0.0590155]
[1769443711034,56.51700581,123.48,123.41,64.3096908]
[1769443711742,5.55143478,123.53,123.43,0.0621671]
[1769443712039,329.19143478,123.53,123.43,0.0621671]
[1769443712237,329.19143478,123.53,123.42,64.3096908]
[1769443712735,113.4524,123.52,123.42,64.3096908]
[1769443713040,70.21558634,123.49,123.39,64.3096908]
[1769443713241,70.15990581,123.48,123.39,64.3096908]
[1769443713743,70.15990581,123.47,123.39,71.6101908]
[1769443714241,70.15990581,123.47,123.37,113.5849]
[1769443714242,0.06183229,123.45,123.4,71.6096908]
[1769443714843,0.06183229,123.45,123.41,7.2995]
[1769443715037,0.06183229,123.45,123.37,5.55143478]
[1769443715243,0.06183229,123.45,123.37,69.86112558]
[1769443715744,70.15990581,123.47,123.39,71.6103908]
[1769443716144,70.15990581,123.47,123.4,71.66215882]
[1769443718542,70.15990581,123.5,123.41,64.3096908]
[1769443719452,70.15990581,123.5,123.44,0.0517209]
[1769443720755,70.15990581,123.5,123.44,7.3495209]
[1769443721856,70.15990581,123.5,123.45,7.2972]
[1769443722358,323.48,123.52,123.45,7.2972]
[1769443722657,393.63990581,123.52,123.45,7.2972]
[1769443722857,70.15990581,123.52,123.45,7.2972]
[1769443723260,70.15990581,123.52,123.47,0.06207914]
[1769443724458,77.45310581,123.52,123.47,0.06207914]
[1769443725151,70.15990581,123.53,123.47,0.06207914]
[1769443725546,12.84213478,123.57,123.47,64.37176994]
[1769443725753,70.15990581,123.56,123.47,64.3096908]
[1769443726259,70.15990581,123.56,123.51,0.05188954]
[1769443726461,77.45080581,123.56,123.51,0.05188954]
[1769443727063,70.21562911,123.55,123.47,64.3096908]
[1769443727362,70.15990581,123.59,123.5,64.3096908]
[1769443727661,70.15990581,123.59,123.5,88.26332561]
[1769443728061,70.15990581,123.59,123.5,31.24743481]
[1769443728262,70.15990581,123.58,123.47,64.3096908]
[1769443728762,70.15990581,123.58,123.51,0.06204226]
[1769443729060,77.45000581,123.58,123.51,0.06204226]
[1769443729262,70.15990581,123.58,123.51,0.06204226]
[1769443729864,75.51254287,123.56,123.51,0.06204226]
[1769443730357,68.22164287,123.56,123.51,0.06204226]
[1769443731664,68.28093217,123.55,123.48,24.45830076]
[1769443731859,68.28093217,123.55,123.47,64.3096908]
[1769443732060,68.28093217,123.55,123.48,7.2955]
[1769443732362,68.22164287,123.55,123.48,7.2955]
[1769443732956,0.05282616,123.53,123.48,7.2955]
[1769443733357,0.05282616,123.53,123.48,73.65630086]
[1769443734358,0.05282616,123.53,123.48,97.89824254]
[1769443735460,75.51184287,123.58,123.5,73.65500086]
[1769443736353,68.22164287,123.58,123.51,73.65450086]
[1769443736554,7.2888,123.6,123.51,66.36080086]
[1769443737064,75.51044287,123.6,123.53,0.05599919]
[1769443737361,75.51044287,123.6,123.53,73.70910005]
[1769443737562,77.91305917,123.6,123.53,76.11171635]
[1769443737859,68.22164287,123.6,123.53,76.11171635]
[1769443738263,75.51044287,123.6,123.53,76.11171635]
[1769443738566,75.51044287,123.6,123.54,2.4026163]
[1769443738970,77.91305917,123.6,123.53,76.11171635]
[1769443739269,77.91305917,123.6,123.53,76.05571716]
[1769443739463,70.62425917,123.6,123.55,0.05817983]
[1769443739768,68.22164287,123.6,123.55,0.05817983]
[1769443740368,70.62425917,123.59,123.55,0.05817983]
[1769443740569,70.62425917,123.57,123.5,2.4026163]
[1769443740764,70.62425917,123.57,123.49,66.36080086]
[1769443740765,70.62425917,123.57,123.49,68.76341716]
[1769443740966,70.62425917,123.57,123.51,7.2937]
[1769443741270,70.62425917,123.53,123.46,68.76341716]
[1769443741568,75.51424287,123.53,123.46,73.65740086]
[1769443741769,68.22164287,123.53,123.46,73.65740086]
[1769443742466,0.0623094,123.51,123.46,73.65740086]
[1769443743659,436.6367,123.56,123.43,114.9337354]
[1769443743660,68.22164287,123.56,123.47,66.36080086]
[1769443743973,68.22164287,123.57,123.48,66.36080086]
[1769443744470,7.2908,123.56,123.48,73.65620086]
[1769443744671,75.51244287,123.56,123.48,73.65620086]
[1769443745066,75.51244287,123.56,123.51,0.05138569]
[1769443745772,68.22164287,123.56,123.51,0.05138569]
[1769443745974,75.51164287,123.58,123.51,0.05138569]
[1769443746174,75.51164287,123.58,123.51,66.41218655]
[1769443746375,68.22164287,123.58,123.51,66.41218655]
[1769443746873,7.2902,123.57,123.51,66.41218655]
[1769443747967,68.22164287,123.58,123.51,0.05138569]
[1769443748568,75.51304287,123.55,123.51,0.05138569]
[1769443748770,68.22164287,123.55,123.51,0.05138569]
[1769443748974,68.22164287,123.55,123.48,66.36080086]
[1769443749170,391.40164287,123.58,123.48,66.36080086]
[1769443749377,68.22164287,123.57,123.52,0.05163913]
[1769443750369,68.22164287,123.6,123.52,66.41243999]
[1769443750572,68.22164287,123.63,123.53,179.79880086]
[1769443750773,68.22164287,123.63,123.54,66.36080086]
[1769443751380,68.22164287,123.63,123.57,0.06120717]
[1769443751974,75.50834287,123.63,123.57,0.06120717]
[1769443753078,7.2873,123.62,123.57,0.06120717]
[1769443753580,75.50834287,123.63,123.57,0.06120717]
[1769443754780,7.2873,123.62,123.57,0.06120717]
[1769443755174,0.05559311,123.61,123.57,0.06120717]
[1769443756382,0.05559311,123.61,123.57,7.35130717]
[1769443758082,0.05559311,123.61,123.57,0.06120717]
[1769443759173,0.05559311,123.61,123.52,70.32258426]
[1769443759174,69.30668892,123.61,123.52,70.32258426]
[1769443759574,69.25109581,123.61,123.52,70.32258426]
[1769443759878,69.25109581,123.61,123.53,7.2925]
[1769443760676,0.05971671,123.58,123.53,77.61508426]
[1769443761071,0.05971671,123.58,123.5,113.4656]
[1769443761072,392.33109581,123.63,123.54,70.32258426]
[1769443761286,392.33109581,123.63,123.54,70.37926326]
[1769443761680,69.25109581,123.63,123.56,70.32258426]
[1769443762178,69.25109581,123.63,123.54,70.32258426]
[1769443762378,69.25109581,123.63,123.58,0.05335121]
[1769443762677,76.53779581,123.63,123.58,0.05335121]
[1769443762876,69.25109581,123.63,123.58,0.05335121]
[1769443766081,76.53789581,123.63,123.58,0.05335121]
[1769443767191,76.53859581,123.62,123.53,70.32258426]
[1769443767375,76.59020967,123.62,123.53,70.32258426]
[1769443767780,76.53859581,123.62,123.54,7.2916]
[1769443767984,69.25109581,123.6,123.52,132.32258426]
[1769443768290,69.25109581,123.6,123.53,70.32258426]
[1769443768485,69.25109581,123.63,123.55,0.06102244]
[1769443768880,69.25109581,123.63,123.53,70.32258426]
[1769443769082,7.2878,123.62,123.54,7.2919]
[1769443769379,69.25109581,123.62,123.57,0.0538037]
[1769443770889,69.25109581,123.64,123.57,70.37638796]
[1769443771483,69.25109581,123.64,123.54,62.0]
[1769443771684,69.25109581,123.64,123.59,0.05742835]
[1769443772189,0.05655128,123.6,123.55,77.61398426]
[1769443772488,76.53779581,123.63,123.55,77.61398426]
[1769443773489,0.0595066,123.6,123.55,70.32258426]
[1769443773688,69.31060241,123.6,123.51,183.77488426]
[1769443773883,69.31060241,123.6,123.51,70.32258426]
[1769443774190,69.25109581,123.6,123.53,7.2924]
[1769443774493,113.3508,123.63,123.53,70.32258426]
[1769443774494,69.25109581,123.63,123.53,70.32258426]
[1769443774689,69.25109581,123.63,123.54,70.38269212]
[1769443774889,76.53839581,123.62,123.55,77.61388426]
[1769443775992,76.53839581,123.62,123.57,0.05767445]
[1769443777894,69.25109581,123.62,123.57,0.05767445]
[1769443778696,69.25109581,123.64,123.58,2.40175083]
[1769443778881,69.25109581,123.66,123.6,2.40175083]
[1769443779083,69.25109581,123.66,123.58,70.32258426]
[1769443779084,69.25109581,123.66,123.61,2.40175083]
[1769443779593,69.25109581,123.66,123.62,0.05534019]
[1769443781394,76.53629581,123.66,123.62,0.05534019]
[1769443781593,76.53629581,123.66,123.59,9.69075083]
[1769443781594,69.25109581,123.66,123.58,7.2896]
[1769443782292,7.2855,123.65,123.58,77.61218426]
[1769443782491,69.25109581,123.66,123.58,70.32258426]
[1769443783094,7.2843,123.68,123.61,77.61028426]
[1769443783295,76.53539581,123.68,123.61,77.66425619]
[1769443783692,76.53539581,123.68,123.61,70.37655619]
[1769443783693,7.2844,123.67,123.61,70.37655619]
[1769443783997,76.53549581,123.67,123.61,0.05397193]
[1769443784897,69.25109581,123.66,123.61,0.05397193]
[1769443785398,69.25109581,123.66,123.57,70.32258426]
[1769443785898,76.53599581,123.66,123.62,0.05105702]
[1769443786197,69.25109581,123.66,123.62,0.05105702]
[1769443786792,7.2844,123.67,123.62,0.05105702]
[1769443787097,76.53549581,123.67,123.62,0.05105702]
[1769443790397,7.2849,123.66,123.62,0.05105702]
[1769443790896,77.63892281,123.66,123.62,0.05105702]
[1769443793189,7.2855,123.65,123.62,0.05105702]
[1769443793385,7.2855,123.65,123.59,70.32258426]
[1769443793793,77.63942281,123.66,123.59,77.61138426]
[1769443793995,70.35402281,123.66,123.57,63.80176242]
[1769443794296,70.35402281,123.65,123.57,63.80176242]
[1769443794491,70.35402281,123.65,123.53,63.80176242]
[1769443794688,70.35402281,123.62,123.53,63.80176242]
[1769443795088,0.05250362,123.6,123.53,63.80176242]
[1769443795288,77.69552643,123.6,123.53,71.09376242]
[1769443800297,77.69552643,123.6,123.51,62.0]
[1769443800298,70.35402281,123.59,123.51,63.80176242]
[1769443800695,7.2903,123.57,123.51,63.80176242]
[1769443800894,70.35402281,123.59,123.51,63.80176242]
[1769443801096,0.05318664,123.56,123.51,63.80176242]
[1769443801292,0.05318664,123.56,123.51,71.09536242]
[1769443802102,0.05318664,123.56,123.51,63.80176242]
[1769443805099,70.40720945,123.56,123.48,71.09666242]
[1769443805509,70.35402281,123.55,123.49,7.2949]
[1769443805697,70.35402281,123.55,123.48,63.80176242]
[1769443806401,0.05412679,123.53,123.49,71.09646242]
[1769443808809,7.2908,123.56,123.5,0.05616644]
[1769443809404,77.64482281,123.56,123.5,0.05616644]
[1769443809599,77.64422281,123.58,123.5,63.85792886]
[1769443809805,70.35402281,123.58,123.5,63.85792886]
[1769443810101,70.35402281,123.58,123.5,63.80176242]
[1769443810501,70.35402281,123.58,123.53,0.05776828]
[1769443810703,6.12890924,123.62,123.53,0.05776828]
[1769443810704,70.35402281,123.6,123.53,63.8595307]
[1769443811105,70.35402281,123.6,123.53,63.80176242]
[1769443811307,70.35402281,123.6,123.54,7.2919]
[1769443811516,70.35402281,123.6,123.55,0.05145885]
[1769443811710,7.2878,123.61,123.55,63.85322127]
[1769443813013,77.64122281,123.63,123.55,63.85322127]
[1769443813414,77.64122281,123.63,123.55,63.80176242]
[1769443813819,77.64122281,123.63,123.58,0.06216812]
[1769443814519,70.35402281,123.63,123.58,0.06216812]
[1769443814817,7.2859,123.65,123.58,7.35166812]
[1769443815625,70.35402281,123.66,123.59,7.2885]
[1769443816311,70.35402281,123.66,123.61,0.05183761]
[1769443816924,77.63902281,123.66,123.61,0.05183761]
[1769443817221,70.35402281,123.66,123.61,0.05183761]
[1769443817816,77.63952281,123.65,123.61,0.05183761]
[1769443818021,70.35402281,123.65,123.55,71.09256242]
[1769443818320,70.35402281,123.65,123.51,420.1983]
[1769443818321,70.35402281,123.62,123.53,63.80176242]
[1769443818521,7.2886,123.6,123.53,63.80176242]
[1769443818718,70.35402281,123.62,123.53,71.09376242]
[1769443819117,113.3525,123.63,123.53,71.09376242]
[1769443819118,68.78495039,123.6,123.53,71.09376242]
[1769443819314,68.78495039,123.6,123.51,73.2887755]
[1769443820928,76.07465039,123.58,123.51,73.2887755]
[1769443821120,68.78495039,123.58,123.51,65.9950755]
[1769443821521,68.78495039,123.58,123.49,7.2947]
[1769443821826,76.07525039,123.57,123.5,7.2943]
[1769443822527,7.2895,123.59,123.51,73.2886755]
[1769443822820,391.82495039,123.6,123.51,65.9950755]
[1769443823423,76.07405039,123.59,123.52,7.2931]
[1769443823926,76.07405039,123.59,123.52,73.2881755]
[1769443824320,0.05237415,123.57,123.53,73.2874755]
[1769443824528,76.07335039,123.61,123.53,135.2874755]
[1769443824722,76.07335039,123.61,123.54,0.05561943]
[1769443825615,76.07345039,123.6,123.54,0.05561943]
[1769443826022,76.07345039,123.6,123.53,73.2874755]
[1769443826429,76.07345039,123.6,123.56,0.05566139]
[1769443827329,76.07405039,123.59,123.51,65.9950755]
[1769443827917,76.07405039,123.59,123.51,127.9950755]
[1769443828128,76.07405039,123.59,123.52,65.9950755]
[1769443828329,76.07405039,123.59,123.53,73.2875755]
[1769443828330,68.78495039,123.59,123.53,73.2875755]
[1769443828822,397.97385963,123.62,123.53,65.9950755]
[1769443829024,68.78495039,123.61,123.55,0.05957906]
[1769443829825,68.78495039,123.63,123.55,66.05465456]
[1769443830026,68.78495039,123.66,123.58,65.9950755]
[1769443830634,68.78495039,123.66,123.61,0.06010595]
[1769443832123,0.06125258,123.65,123.61,0.06010595]
[1769443833529,0.06125258,123.65,123.61,66.05518145]
[1769443835338,0.06125258,123.65,123.61,73.34288145]
[1769443838736,0.06125258,123.65,123.61,66.05518145]
[1769443849247,0.06125258,123.65,123.61,73.34288145]
[1769443851946,0.06125258,123.65,123.61,66.05518145]
[1769443852753,0.06125258,123.65,123.61,73.34288145]
[1769443853855,68.87111175,123.69,123.64,9.68566576]
[1769443854652,68.87111175,123.73,123.66,72.94285407]
[1769443854850,322.9,123.74,123.66,72.94285407]
[1769443855051,322.9,123.74,123.65,113.33]
[1769443855052,322.9,123.74,123.68,72.94285407]
[1769443855259,0.00154662,123.71,123.68,80.28720892]
[1769443855661,68.87111175,123.76,123.71,7.2818]
[1769443856852,68.87111175,123.76,123.72,0.05289587]
[1769443857453,76.14891175,123.78,123.72,0.05289587]
[1769443859062,68.87111175,123.78,123.72,70.59598418]
[1769443859262,388.68821175,123.8,123.73,7.2806]
[1769443860161,76.14851175,123.79,123.75,0.05759036]
[1769443860363,68.87111175,123.79,123.72,70.54308831]
[1769443860765,312.54,123.8,123.71,119.38458857]
[1769443860766,312.54,123.8,123.74,70.54308831]
[1769443861057,381.41111175,123.8,123.74,70.54308831]
[1769443861665,381.41111175,123.8,123.76,0.05225884]